Cogmind - Beta 16 @@@ ROGUE MODE // 2025.11.13 @ 10:35:00 Player: OMNISSIAH Result: Destroyed by G-34 Mercenary with Small Laser Performance ------------- Evolutions (0) 0 Regions Visited (1) 200 Robots Destroyed (15) 75 Value Destroyed (227) 227 Prototype IDs (0) 0 Alien Tech Used (0) 0 Bonus (0) 0 TOTAL SCORE: 502 Bonus ------- None Cogmind --------- Core Integrity 0/250 Matter 293/300 Energy 125/125 System Corruption 0% Temperature Cool (6) Movement Core (750) Ox14 Location -10/Materials Parts ------- > --- POWER (1) -------- Light Ion Engine > --- PROPULSION (2) --- (None) > --- UTILITY (2) ------ High-capacity Storage Unit > --- WEAPON (2) ------- Light Assault Rifle > --- INVENTORY (20) --- Ion Engine Light Ion Engine Improved Terrain Scanner Seismic Detector Seismic Detector Seismic Detector Grenade Launcher Mining Laser Peak State ------------ > --- POWER ------------ Ion Engine > --- PROPULSION ------- Aluminum Leg Aluminum Leg > --- UTILITY ---------- Small Storage Unit Improved Terrain Scanner > --- WEAPON ----------- Assault Rifle Assault Rifle > --- INVENTORY -------- (None) [Rating: 9] Favorites ----------- Power Ion Engine Engine Ion Engine Propulsion Aluminum Leg Leg Aluminum Leg Flight Unit Flight Unit Utility Improved Terrain Scanner Device Improved Terrain Scanner Storage High-capacity Storage Unit Weapon Assault Rifle Ballistic Gun Assault Rifle Build | -11 -10 ------- Run | Yrd Mat Slots Evolved . | . . Power . | . . Propulsion . | . . Utility . | . . Weapon . | . . Parts Attached 13 | 7 6 Power 4 | 1 3 Engine 4 | 1 3 Core . | . . Reactor . | . . Propulsion 3 | 2 1 Treads . | . . Leg 2 | 2 . Wheel . | . . Hover . | . . Flight 1 | . 1 Utility 3 | 2 1 Device 1 | 1 . Storage 2 | 1 1 Processor . | . . Hackware . | . . Protection . | . . Artifact . | . . Weapon 3 | 2 1 Energy Gun . | . . Energy Cannon . | . . Ballistic Gun 3 | 2 1 Ballistic Cannon . | . . Launcher . | . . Special Weapon . | . . Impact Weapon . | . . Slashing Weapon . | . . Piercing Weapon . | . . Special Melee Weapon . | . . Unidentified Prototypes . | . . Parts Lost 7 | . 7 Power 1 | . 1 Propulsion 3 | . 3 Utility 1 | . 1 Weapon 2 | . 2 Highest Loss Streak 5 | . 5 To Critical Strikes 1 | . 1 Average Backups 5 | 1 6 Power . | . . Propulsion . | . . Utility 3 | 1 4 Weapon 1 | . 1 Tool/Special . | . . Unused Backups 7 | . 7 Power . | . . Propulsion . | . . Utility 4 | . 4 Weapon 3 | . 3 Tool/Special . | . . Average Slot Usage (%) 91 | . 91 Engine 13 | . 13 Leg 22 | . 22 Flight 1 | . 1 Device 11 | . 11 Storage 14 | . 14 Ballistic Gun 26 | . 26 Peak Build Rating 9 | 9 9 Average Rating 7 | 6 8 On Entrance 4 | . 9 Avg Prop Armor Cover (%) . | . . Naked Turns . | . . Heaviest Build 50 | 15 50 Greatest Support 20 | 20 20 Greatest Overweight (x) 14 | 4 14 Average Overweight (x) 1 | . 2 Largest Inventory Capacity 20 | 8 20 Average Capacity 16 | 7 18 Most Carried 8 | 5 8 Average Carried 5 | 1 6 Final Capacity 20 | 8 20 Final Carried 8 | 5 8 Class Distribution -------------------- 100% | Mutant Dominant Class ---------------- Mutant | -10/Materials Resources | -11 -10 ----------- Run | Yrd Mat Matter Collected 477 | 312 165 Remotely . | . . Salvage Created 393 | 162 231 Parts 37 | 20 17 Haulers Intercepted . | . . Recyclers Shooed . | . . Parts Field Recycled . | . . Retrieved Matter . | . . Parts Self-Destructed . | . . Prevented . | . . Parts Restored . | . . Kills | -11 -10 ------- Run | Yrd Mat Combat Hostiles Destroyed 9 | . 9 Guns 9 | . 9 Classes Destroyed 4 | 2 2 Tunneler 5 | 5 . Recycler 1 | 1 . Swarmer 5 | . 5 Grunt 4 | . 4 Best Kill Streak 5 | 4 5 Combat Bots Only 5 | . 5 Max Kills in Single Turn 2 | 2 2 Gunslinging 1 | . 1 Exploded . | . . Melee . | . . Uniques/NPCs Destroyed . | . . Combat | -11 -10 -------- Run | Yrd Mat Hostile Shots Fired 123 | . 123 Missed 29 | . 29 Hits 94 | . 94 Projectile 94 | . 94 Critical Strikes 1 | . 1 Damage Taken 909 | . 909 Core 254 | . 254 Absorbed by Shields . | . . Core Remaining (%) 100 | 100 . Volleys Fired 35 | 7 28 Largest 2 | 2 2 Hottest 40 | 40 40 Shots Fired 63 | 14 49 Gun 63 | 14 49 Cannon . | . . Launcher . | . . Special . | . . Kinetic 63 | 14 49 Thermal . | . . Explosive . | . . Electromagnetic . | . . Robot Hit Streak 7 | 5 7 Robot Miss Streak 4 | 1 4 Penetration Max . | . . Secondary Targets 1 | . 1 Max Gunslinging Chain 1 | . 1 Shots Hit Robots 38 | 9 29 Core Hits 18 | 6 12 Critical Kills . | . . Critical Parts Destroyed . | . . Critical Strikes . | . . Melee Attacks . | . . Impact . | . . Slashing . | . . Piercing . | . . Sneak Attacks . | . . Combat Hostiles . | . . Follow-up Attacks . | . . Damage Inflicted 552 | 149 403 Guns 552 | 149 403 Cannons . | . . Explosions . | . . Melee . | . . Ramming . | . . Kinetic 552 | 149 403 Thermal . | . . Explosive . | . . Electromagnetic . | . . Impact . | . . Slashing . | . . Piercing . | . . Highest Corruption . | . . Average Corruption . | . . Corruption Purged . | . . Corruption Blocked . | . . Overload Shots . | . . Overflow Damage . | . . Projectiles . | . . Explosions . | . . Melee . | . . Knockbacks . | . . Impact . | . . Kinetic . | . . Secondary . | . . Self-Inflicted Damage . | . . Shots . | . . Rammed . | . . Targets Rammed . | . . Kicked . | . . Crushed . | . . Highest Temperature 5 | . 5 Average Temperature 4 | . 4 Received Heat Transfer 330 | . 330 Siege Activations . | . . Martial Activations . | . . Shielding Activations . | . . Robots Disrupted . | . . Combat Hostiles . | . . Robots Corrupted . | . . Combat Hostiles . | . . Parts Fried . | . . Impact Corruptions . | . . Robots Melted . | . . Combat Hostiles . | . . Parts Melted . | . . Heat Transferred . | . . Parts Sabotaged . | . . Parts Stolen . | . . Parts Stripped . | . . Power Chain Reactions . | . . Alert | -11 -10 ------- Run | Yrd Mat Maximum Alert Level . | . . Low Security (%) 100 | 100 100 Level 1 . | . . Level 2 . | . . Level 3 . | . . Level 4 . | . . Level 5 . | . . High Security . | . . Max Security . | . . Peak Influence 82 | 15 82 Initial . | . . Average 15 | 2 18 Influence Increases 277 | 30 247 Destroy 0b10 Robot/C 180 | . 180 Destroy 0b10 Robot/NC 30 | 30 . Destroy Leader 30 | . 30 Successful Hack 7 | . 7 Lose Combat Pursuer 30 | . 30 Influence Decreases 255 | 30 225 Time Decay 215 | 30 185 Lost Part 40 | . 40 Squads Dispatched 2 | . 2 Investigation 1 | . 1 Extermination . | . . Reinforcement 1 | . 1 Assault . | . . Garrison . | . . Intercept . | . . Searches Triggered . | . . Construction Impeded . | . . Haulers Reinforced . | . . Active Scanning Responses . | . . Cargo Convoy Interrupts . | . . Stealth | -11 -10 --------- Run | Yrd Mat Distress Signals 2 | . 2 Communications Jammed . | . . Distress Signals . | . . Times Spotted 15 | . 15 Peak Tracking Total 6 | . 6 Tactical Retreats 2 | . 2 Traps | -11 -10 ------- Run | Yrd Mat Traps Triggered 1 | . 1 Indirectly . | . . Trap Hack Attempts . | . . Triggered . | . . Disarmed . | . . Reprogrammed . | . . Reused . | . . Traps Extracted . | . . Installed . | . . Triggered . | . . Machines | -11 -10 ---------- Run | Yrd Mat Machines Disabled . | . . Max in Single Turn . | . . Machines Repaired . | . . Machines Dismantled . | . . Machines Sabotaged . | . . Overloaded Fab Kills . | . . Hacking | -11 -10 --------- Run | Yrd Mat Machines Accessed 3 | . 3 Terminals 2 | . 2 Fabricators . | . . Repair Stations . | . . Recycling Units 1 | . 1 Scanalyzers . | . . Garrison Access . | . . Total Hacks 9 | . 9 Successful 6 | . 6 Failed 3 | . 3 Catastrophic . | . . Database Lockouts . | . . Manual 1 | . 1 Terminals 8 | . 8 Fabricators . | . . Repair Stations . | . . Recycling Units 1 | . 1 Scanalyzers . | . . Garrison Access . | . . Terminal Hacks 5 | . 5 Record 1 | . 1 Alert Level 2 | . 2 Dispatch Records 1 | . 1 Maintenance Status 1 | . 1 Fabricator Hacks . | . . Repair Station Hacks . | . . Recycling Unit Hacks 1 | . 1 Report Inventory 1 | . 1 Scanalyzer . | . . Garrison Access Hacks . | . . Unauthorized Hacks . | . . Terminals . | . . Fabricators . | . . Repair Stations . | . . Recycling Units . | . . Scanalyzers . | . . Garrison Access . | . . Data Cores Recovered . | . . Used . | . . Hacking Detections 3 | . 3 Full Trace Events . | . . Feedback Events . | . . Feedback Blocked . | . . Robot Schematics Acquired . | . . Robots Built . | . . Authchips . | . . Time . | . . Total Robot Build Rating . | . . Part Schematics Acquired . | . . Parts Built . | . . Authchips . | . . Time . | . . Total Part Build Rating . | . . Part Studies Acquired . | . . Parts Repaired . | . . Time . | . . Parts Recycled . | . . Recycled Matter . | . . Retrieved Matter . | . . Retrieved Components . | . . Parts Scanalyzed . | . . Part Schematics Acquired . | . . Parts Damaged . | . . Bothacking | -11 -10 ------------ Run | Yrd Mat Used RIF Installer . | . . Robots Hacked . | . . Non-combat . | . . Combat . | . . Robot Hacks Applied . | . . Relay Couplers Released . | . . Fabnet Peak Effective % . | . . Robots Rewired . | . . Allies Hacked . | . . Hacks Repelled . | . . Allies | -11 -10 -------- Run | Yrd Mat Total Allies . | . . Largest Group . | . . Highest-Rated Group . | . . Highest-Rated Ally . | . . Total Orders . | . . Ally Attacks . | . . Total Damage . | . . Kills . | . . Allies Corrupted . | . . Allies Melted . | . . Intel | -11 -10 ------- Run | Yrd Mat Active Infowar (turns) 619 | 79 540 Terrain 619 | 79 540 Robot Analysis Total . | . . Derelict Logs Recovered . | . . Drone Launches . | . . Drone Recoveries . | . . Exploration | -11 -10 ------------- Run | Yrd Mat Turns Passed 802 | 144 658 Spaces Moved 301 | 84 217 Core 17 | 15 2 Treads . | . . Legs 274 | 69 205 Wheels . | . . Hover . | . . Flight 10 | . 10 Fastest Speed 50 | 50 120 Average Speed 225 | 128 262 Slowest Speed 920 | 250 920 Overloaded Moves . | . . Propulsion Burnouts . | . . Robots Hopped . | . . Potential Cave-ins . | . . Cave-ins Triggered . | . . Exploration Rate (%) 19 | 5 34 Regions Visited 1 Branch Regions . Pre-discovered Areas . | . . Known Exits Taken . | . . Unknown Exits Taken 1 | 1 . Scrap Searched . | . . Spaces Dug . | . . Terrain Destroyed . | . . Melee . | . . Projectile . | . . AOE . | . . Terrain Rammed . | . . Walls Destroyed . | . . Machines Disabled . | . . Actions | -11 -10 --------- Run | Yrd Mat Total 356 | 102 254 Wait . | . . Move 300 | 83 217 Hop . | . . Pick Up 7 | 5 2 Fast Attach 11 | 7 4 Attach . | . . Detach . | . . Swap 2 | . 2 Drop 1 | . 1 Fire 35 | 7 28 Melee . | . . Ram . | . . Kick . | . . Crush . | . . Escape Stasis . | . . Rewire . | . . Trap . | . . Miscellaneous . | . . Route ------- -11/Scrapyard -10/Materials History --------- Turn | Location | Event 32 | -11/Scrapyard | Discovered new exit (range 14) 145 | -11/Scrapyard | Entered Materials 302 | -10/Materials | Build established: Mutant 674 | -10/Materials | Core integrity fell below 50% 719 | -10/Materials | Lost 5 parts (1p2n1u1w) 778 | -10/Materials | Core integrity fell below 20% 803 | -10/Materials | Destroyed by G-34 Mercenary with Small Laser Last Messages --------------- K-01 Serf collects debris. R-06 Scavenger collects Flight Unit. K-01 Serf collects debris. R-06 Scavenger collects Lgt. Assault Rifle. R-06 Scavenger collects Lgt. Ion Engine. K-01 Serf collects debris. Acquired 11 matter. R-06 Scavenger collects Lgt. Assault Rifle. K-01 Serf collects debris. W-16 Scout sends out distress signal. K-01 Serf collects debris. Acquired 20 matter. K-01 Serf collects debris. Assault Rifle destroyed. R-06 Scavenger collects Flight Unit. R-06 Scavenger collects Lgt. Ion Engine. R-06 Scavenger collects Lgt. Assault Rifle. K-01 Serf cleans the Terminal. Flight Unit destroyed. K-01 Serf cleans the Terminal. Map ----- +----------------------------------------------------+ | #??# """ + """ """ #?? | | #?## # """ """ #?? | | ####?# # #?? | | #??#?# ####### # #?? | | ?????# #???? # ##+#######?#? | | ?????# +? ??# #?????## | | ?????# # ? ??# #??????? | | ?? ??# # ? # """" ##?????? | | ?# ??# #? ?? # !"""" #?#????# | | ?? ??# #???" # """" ###????# | | ????? #??? ?# % ###??#?# | | ?/? #???#?# k #??#?#?? | | ???? #???# # "T" #???#??? | | ??? """" ##?#? ###### #??????? | | ?? """" #?##? ?##?## #??????? | | ?#?????" ?##?#???#?## #?????#? | | ???????? #?### ###### #??#???? | | ????? ##???#?? | | ????????+??########### #??????? | | ???????????????????#?# #??##??? | | ????????????????#????# #??????? | | ?????????? ???? #????# % ###????# | | ??????????????? ###??# % #????#?? | | ??????????????? ###### % #??????? | | ????????? + g % ####???? | | ?????????????#### @ !!#??? | | ?????????????#??# """ !!#??# | | ??????????#?????# """ !!#??? | | ??????????????? + """ !!#??? | | ??????????????? # ^ [[#??? | | ??????????? ??"?# [[#??? | | ????????????????# """ #####??? | | ????????????????# """ r #??????? | | ????????????????#^ """ ##??????? | | ????????????????+ ?? #???????? | | ???????????????????? #???????? | | ????????????????????"" ????????? | | ????????????????????"" ????????? | | ?????????????????????" ????????? | | ????????????????????? ????????? | | ??????????????????????? ????????? | | ?????????????????????????????????? | | ?????????????????????????????????? | | ?????????????????????????????????? | | ?????????????????????????????????? | | ?????????????????????????????????? | | ?????????????????????????????????? | | ?????????????????????????????????? | | ?????????????????????????????????? | | ?????????????????????????????????? | +----------------------------------------------------+ Best States ------------- Heat Dissipation 25 Energy Generation 10 Energy Capacity 250 Matter Stores 300 Matter Capacity 300 Sight Range 16 Terrain Scan Range 16 Terrain Scan Density 10 Evasion (%) 55 Item Schematics ----------------- None Robot Schematics ------------------ None Fabricated ------------ Nothing Repaired ---------- Nothing Studied --------- None Alien Tech Used ----------------- None Achievements -------------- None Challenges ------------ None Game ------ Seed LinkedFlightSlamshotty Manual? 0 Play Time 00:09:12 Cumulative 5.9 hours Start 2025.11.13 @ 10:26:00 End 2025.11.13 @ 10:35:00 Sessions 1 Manual Loads 0 Difficulty Rogue Special Mode None Game No. 12 Rogue 12 Adventurer 0 Explorer 0 Win Type - Total 0 Types 0/0/0/0/0/0/0/0/0/0 Lore% 10 Gallery% 8 Achievement% 11 Wizard Run 0 Options --------- Layout 1 ASCII 0 Keyboard 0 Movement Arrows Keybinds 0 Fullscreen 1 Font 24/Smallcaps Map View 50x35 Zoom Use 0% Tactical HUD 0 Map Filters NONE Filters NONE Steam 1 RUN: b0eee984-0b63-46d9-a241-4745356e1dbe